Organisation Name,Organisation Code,Directorate/Service,Service Category Label,Service Code,Supplier Name,Supplier Reference,Payment Date,Transaction Number,Net Payments,Purpose of Spend
North West Leicestershire District Council,31UH,Street Management,Environment - Street Scene,ESS,Nottingham City Council,A041558,02/06/2021,1410564,575.00,Subscriptions
North West Leicestershire District Council,31UH,Planning & Development,Environment - Town Centre/CCTV,ECCTV,RTRIO Ltd,A044731,02/06/2021,1410818,1500.00,Safeguarding
North West Leicestershire District Council,31UH,Street Management,Environment Transport,ENOT,Ford & Slater Group Ltd,A000625,02/06/2021,1410820,312.38,Scheduled Servicing - Parts
North West Leicestershire District Council,31UH,Street Management,Environment Waste Management,ENOWM,Environment Media Group Ltd,A045305,02/06/2021,1410861,493.50,Training Expenses
North West Leicestershire District Council,31UH,Housing Repairs,HRA Housing Repairs & Maintenance,HRAHRM,Laker BMS Ltd,A031787,02/06/2021,1410979,19371.47,Contract Payments (Dws) Ext
North West Leicestershire District Council,31UH,Legal & Democratic,Legal Services,LDLS,Nottingham City Council,A041558,02/06/2021,1411008,850.00,Training Expenses
North West Leicestershire District Council,31UH,Street Management,Environment Transport,ENOT,Trade Price Windscreens Ltd,A040486,02/06/2021,1411012,270.00,Non Scheduled Maintenance - Parts
North West Leicestershire District Council,31UH,Street Management,Environment Transport,ENOT,S & B Tyres Limited,A034071,02/06/2021,1411015,367.00,Transport Costs - Tyres
North West Leicestershire District Council,31UH,Street Management,Environment Transport,ENOT,S & B Tyres Limited,A034071,02/06/2021,1411016,370.00,Transport Costs - Tyres
North West Leicestershire District Council,31UH,Street Management,Environment Transport,ENOT,Pd Supplies Ltd,A002198,02/06/2021,1411017,395.93,Consumable Materials
North West Leicestershire District Council,31UH,Street Management,Environment Transport,ENOT,Ford & Slater Group Ltd,A000625,02/06/2021,1411030,340.59,Scheduled Servicing - Parts
North West Leicestershire District Council,31UH,Street Management,Environment Transport,ENOT,Westbury Industrial Supplies Limited,A009933,02/06/2021,1411033,462.24,Protective Clothing
North West Leicestershire District Council,31UH,Street Management,Environment Transport,ENOT,Coalville Cleaning Services,A003037,02/06/2021,1411046,1436.85,Contract Cleaning
North West Leicestershire District Council,31UH,Planning & Development,Environment - Town Centre/CCTV,ECCTV,Broadland Guarding Services Ltd,A042635,02/06/2021,1411053,4297.16,Service Contracts
North West Leicestershire District Council,31UH,Finance,Financial Planning,FINPLA,Mazars LLP,A045078,02/06/2021,1411054,8000.00,Audit Commision Fees
North West Leicestershire District Council,31UH,Finance,Financial Planning,FINPLA,Mazars LLP,A045078,02/06/2021,1411055,3000.00,Audit Commision Fees - Grant Claims
North West Leicestershire District Council,31UH,Corporate Director,Human Resources,HR,Leicestershire County Council,A000950,02/06/2021,1411059,29348.00,Local Resilience Forum Annual Fee
North West Leicestershire District Council,31UH,Street Management,Environment Transport,ENOT,Aebi Schmidt Uk Limited,A017053,02/06/2021,1411061,749.61,Scheduled Servicing - Parts
North West Leicestershire District Council,31UH,Finance,Financial Planning,FINPLA,Michael Page International Recruitment Ltd,A041893,02/06/2021,1411069,3780.00,Agency Staff
North West Leicestershire District Council,31UH,Finance,Financial Planning,FINPLA,Leicestershire County Council,A036728,02/06/2021,1410552,65283.61,Pension-Added Years/Capital Cost
North West Leicestershire District Council,31UH,Housing Repairs,HRA Housing Repairs & Maintenance,HRAHRM,Arco Limited,A000068,02/06/2021,1410631,369.86,Protective Clothing
North West Leicestershire District Council,31UH,Street Management,Environment Parks,ENOP,Sunnyside Garden Centre Ltd,A029345,02/06/2021,1410791,360.00,Operational Purchases
North West Leicestershire District Council,31UH,Street Management,Environment Parks,ENOP,Sunnyside Garden Centre Ltd,A029345,02/06/2021,1410792,426.00,Operational Purchases
North West Leicestershire District Council,31UH,Street Management,Environment Parks,ENOP,Central Construction Services,A004448,02/06/2021,1410816,725.00,Operational Purchases
North West Leicestershire District Council,31UH,Housing Repairs,HRA Housing Repairs & Maintenance,HRAHRM,Arco Limited,A000068,02/06/2021,1410857,435.27,Protective Clothing
North West Leicestershire District Council,31UH,Economic Development,Business Focus Group,BFG,Edwards & Edwards Consultancy Ltd,A041694,02/06/2021,1411038,1180.00,Legal & Professional Services
North West Leicestershire District Council,31UH,Street Management,Environment - Street Scene,ESS,Groundsman Tools & Supplies LLP,A030744,02/06/2021,1411056,382.31,Operational Equipment
North West Leicestershire District Council,31UH,Housing Repairs,HRA Housing Repairs & Maintenance,HRAHRM,Michael Dyson Associates Ltd,A028431,02/06/2021,1411129,483.00,Legal & Professional Services
North West Leicestershire District Council,31UH,Planning & Development,Environment - Development Control,EDC,DW Clark Drainage Ltd,A046833,02/06/2021,1411134,8150.00,River Mease project
North West Leicestershire District Council,31UH,Planning & Development,Environment - Development Control,EDC,Rob Thompson Urbanism Limited,A045846,02/06/2021,1411138,1837.50,Consultants Fees
North West Leicestershire District Council,31UH,Chief Exec,Chief Executive,CHEX,Pollards Fruit & Veg,A045637,02/06/2021,1411146,280.00,Food Deliveries
North West Leicestershire District Council,31UH,Street Management,Environment - Street Scene,ESS,Vtec Group,A046872,02/06/2021,1410777,4893.05,Contract Payments (Other) Ext
North West Leicestershire District Council,31UH,Planning & Development,Environment - Development Control,EDC,TMP Worldwide Ltd,A045319,02/06/2021,1411137,538.09,Advertising
North West Leicestershire District Council,31UH,Economic Development,Business Focus Group,BFG,DCI Architecture Ltd,A046669,02/06/2021,1411187,1525.00,PRE - Public Realm Masterplan
North West Leicestershire District Council,31UH,Street Management,Environment Waste Management,ENOWM,Vinyl  Decals Direct Ltd,A043487,02/06/2021,1411188,1160.00,Publicity & Promotion
North West Leicestershire District Council,31UH,Street Management,Environment Waste Management,ENOWM,Vinyl  Decals Direct Ltd,A043487,02/06/2021,1411189,265.00,Publicity & Promotion
North West Leicestershire District Council,31UH,Street Management,Environment Waste Management,ENOWM,Vinyl  Decals Direct Ltd,A043487,02/06/2021,1411190,580.00,Publicity & Promotion
North West Leicestershire District Council,31UH,Housing,HRA Performance & Business Support,HRAPBS,Leicester City Council Accounts Receivable,A034295,02/06/2021,1411193,596.70,Spend to Save Schemes
North West Leicestershire District Council,31UH,Housing Repairs,HRA Housing Repairs & Maintenance,HRAHRM,Michael Dyson Associates Ltd,A028431,02/06/2021,1411128,756.00,Legal & Professional Services
North West Leicestershire District Council,31UH,Corporate Director,Corporate Director,CORDI,Ecus Ltd,A044014,02/06/2021,1411132,2496.00,Advertising
North West Leicestershire District Council,31UH,Housing Repairs,HRA Housing Repairs & Maintenance,HRAHRM,Citron Hygiene Ltd,A033313,02/06/2021,1411133,399.00,Operational Purchases
North West Leicestershire District Council,31UH,Planning & Development,Environment - Development Control,EDC,GHM Planning Limited,A034296,02/06/2021,1411135,2775.00,Agency Staff
North West Leicestershire District Council,31UH,Planning & Development,Environment - Development Control,EDC,GHM Planning Limited,A034296,02/06/2021,1411136,3500.50,Agency Staff
North West Leicestershire District Council,31UH,Planning & Development,Environment - Development Control,EDC,Rob Thompson Urbanism Limited,A045846,02/06/2021,1411139,3150.00,Urban Design/Our Place Expenditure
North West Leicestershire District Council,31UH,Street Management,Environment Transport,ENOT,Mobile Hydraulics Ltd,A001131,02/06/2021,1411140,335.55,Repairs - Parts
North West Leicestershire District Council,31UH,Street Management,Environment Transport,ENOT,Parkers The Parts People,A044935,02/06/2021,1411141,300.83,Non Insurance Damage
North West Leicestershire District Council,31UH,Planning & Development,Environment Planning Policy,EPP,Clearlead Consulting Ltd,A044888,02/06/2021,1411145,5862.50,Consultants Fees
North West Leicestershire District Council,31UH,Planning & Development,Environment - Development Control,EDC,TMP Worldwide Ltd,A045319,02/06/2021,1411167,816.75,Advertising
North West Leicestershire District Council,31UH,Information Technology,ICT Services,ICT,Freedom Communications (UK) Ltd,A032826,02/06/2021,1411051,9750.00,Admin Equipment - Maintenance
North West Leicestershire District Council,31UH,Property Services,Property Facilities Management,PROPFM,Coalville Cleaning Services,A003037,09/06/2021,1410217,2674.44,Cleaning & Domestic Equipment
North West Leicestershire District Council,31UH,Property Services,Property Facilities Management,PROPFM,TECSERV UK LIMITED,A028261,09/06/2021,1410505,912.29,General Repairs
North West Leicestershire District Council,31UH,Legal & Democratic,Civic Expenses,LDCE,Chameleon Pro Audio T/A Lux Technical Ltd,A027592,09/06/2021,1411039,2500.00,Sound and Lighting
North West Leicestershire District Council,31UH,Street Management,Environment Parks,ENOP,Meon Ltd,A045777,09/06/2021,1411042,252.78,Operational Purchases
North West Leicestershire District Council,31UH,Housing Repairs,HRA Housing Repairs & Maintenance,HRAHRM,Lee Wells Autobodies Ltd,A031849,09/06/2021,1411043,400.00,Vehicle Body Repairs
North West Leicestershire District Council,31UH,Leisure & Culture,Sport & Physical Activity,SPA,Living Streets Services Ltd,A046710,09/06/2021,1411147,660.00,Local Sports Alliance Expenditure
North West Leicestershire District Council,31UH,Legal & Democratic,Legal Services,LDLS,MBL Seminars Limited,A041430,09/06/2021,1411149,840.00,Training Expenses
North West Leicestershire District Council,31UH,Street Management,Environment Transport,ENOT,ESPO,A000958,09/06/2021,1411197,579.00,Administrative Equipment
North West Leicestershire District Council,31UH,Street Management,Environment Transport,ENOT,J F Lloyd & Sons,A000991,09/06/2021,1411198,440.00,Hire Of Operational Equipment
North West Leicestershire District Council,31UH,Street Management,Environment Parks,ENOP,Vitax Limited,A031093,09/06/2021,1411203,264.00,Operational Purchases
North West Leicestershire District Council,31UH,Property Services,Property Commercial Lettings,PROPCL,Coalville Cleaning Services,A003037,09/06/2021,1411209,2346.00,Cleaning & Domestic Equipment
North West Leicestershire District Council,31UH,Property Services,Property Commercial Lettings,PROPCL,Coalville Cleaning Services,A003037,09/06/2021,1411210,355.18,Contract Cleaning
North West Leicestershire District Council,31UH,Property Services,Property Commercial Lettings,PROPCL,Coalville Cleaning Services,A003037,09/06/2021,1411211,667.62,Contract Cleaning
North West Leicestershire District Council,31UH,Property Services,Property Commercial Lettings,PROPCL,Coalville Cleaning Services,A003037,09/06/2021,1411212,667.62,Contract Cleaning
North West Leicestershire District Council,31UH,Street Management,Environment Transport,ENOT,Selby's Garage (Woodhouse) Ltd,A044011,09/06/2021,1411217,1176.91,Hire Of Operational Equipment
North West Leicestershire District Council,31UH,Finance,Financial Planning,FINPLA,Macildowie Associates Ltd,A046022,09/06/2021,1411244,992.08,Agency Staff
North West Leicestershire District Council,31UH,Finance,Financial Planning,FINPLA,Macildowie Associates Ltd,A046022,09/06/2021,1411245,1552.21,Agency Staff
North West Leicestershire District Council,31UH,Finance,Financial Planning,FINPLA,Sports & Leisure Management Ltd,A045556,09/06/2021,1411246,50876.00,Payments To Contractor
North West Leicestershire District Council,31UH,Information Technology,ICT Services,ICT,ACS Systems (UK) Ltd T/a ACS Office Solutions,A043447,09/06/2021,1411247,1022.00,Mobile Working Tablets
North West Leicestershire District Council,31UH,Legal & Democratic,Civic Expenses,LDCE,G and G Signs,A001111,09/06/2021,1411248,1003.00,Signs & Notices
North West Leicestershire District Council,31UH,Information Technology,ICT Services,ICT,Cuttlefish Multimedia Ltd,A032102,09/06/2021,1411256,1718.33,Website Maintenance
North West Leicestershire District Council,31UH,Finance,Financial Planning,FINPLA,Leicestershire County Council,A000950,09/06/2021,1410511,5246.08,PCN LEVY
North West Leicestershire District Council,31UH,Property Services,Property Facilities Management,PROPFM,Peewee Toilet Hire,A046748,09/06/2021,1410562,590.00,Election Fees
North West Leicestershire District Council,31UH,Street Management,Environment Transport,ENOT,Logistics UK,A027981,09/06/2021,1410753,295.00,Training Expenses
North West Leicestershire District Council,31UH,Street Management,Environment Transport,ENOT,Mertrux Ltd,A035291,09/06/2021,1410754,1621.20,Repairs - Parts
North West Leicestershire District Council,31UH,Property Services,Property Facilities Management,PROPFM,Leicestershire County Council,A000950,09/06/2021,1410844,880.30,Signs & Notices
North West Leicestershire District Council,31UH,Street Management,Environment Transport,ENOT,Hako Machines Limited,A034237,09/06/2021,1411009,653.63,Scheduled Servicing - Parts
North West Leicestershire District Council,31UH,Street Management,Environment Parks,ENOP,Kompan Ltd,A031156,09/06/2021,1411218,338.55,Operational Purchases
North West Leicestershire District Council,31UH,Information Technology,ICT Services,ICT,Phoenix Software Limited,A001298,09/06/2021,1411250,436.63,Admin Equipment - Maintenance
North West Leicestershire District Council,31UH,Property Services,Property Facilities Management,PROPFM,Logic Fire and Security Ltd,A044439,09/06/2021,1410088,375.85,Fire Precaution Appliances
North West Leicestershire District Council,31UH,Property Services,Property Facilities Management,PROPFM,Logic Fire and Security Ltd,A044439,09/06/2021,1410094,389.85,General Repairs
North West Leicestershire District Council,31UH,Property Services,Property Facilities Management,PROPFM,Logic Fire and Security Ltd,A044439,09/06/2021,1410095,772.60,Special Events
North West Leicestershire District Council,31UH,Property Services,Property Facilities Management,PROPFM,Logic Fire and Security Ltd,A044439,09/06/2021,1410096,639.10,General Repairs
North West Leicestershire District Council,31UH,Property Services,Property Facilities Management,PROPFM,Logic Fire and Security Ltd,A044439,09/06/2021,1410098,316.90,General Repairs
North West Leicestershire District Council,31UH,Street Management,Environment Parks,ENOP,K Borley & Son Ltd,A045080,09/06/2021,1410278,954.17,Asset Protection
North West Leicestershire District Council,31UH,Property Services,Property Commercial Lettings,PROPCL,Mather Jamie,A001059,09/06/2021,1410296,2372.04,Management Company
North West Leicestershire District Council,31UH,Street Management,Environment Transport,ENOT,Hako Machines Limited,A034237,09/06/2021,1410836,470.79,Scheduled Servicing - Parts
North West Leicestershire District Council,31UH,Property Services,Property Commercial Lettings,PROPCL,Calbarrie Ltd,A021932,09/06/2021,1410991,4253.40,General Repairs
North West Leicestershire District Council,31UH,Leisure & Culture,Sport & Physical Activity,SPA,Elliott Group Limited,A005413,09/06/2021,1411052,505.72,Secure Storage and Portable Accomodation
North West Leicestershire District Council,31UH,Street Management,Environment Parks,ENOP,Groundsman Tools & Supplies LLP,A030744,09/06/2021,1411057,914.89,Operational Purchases
North West Leicestershire District Council,31UH,Street Management,Environment Transport,ENOT,Certas Energy Uk Ltd,A043448,09/06/2021,1411195,18514.00,Fuel
North West Leicestershire District Council,31UH,Street Management,Environment Parks,ENOP,Data Academy Ltd,A043706,09/06/2021,1411204,295.00,Training Expenses
North West Leicestershire District Council,31UH,Planning & Development,Environment - Development Control,EDC,Jeremy Benn Associates Ltd (t/a JBA Consulting),A044010,09/06/2021,1411215,1380.00,River Mease project
North West Leicestershire District Council,31UH,Housing Repairs,HRA Housing Repairs & Maintenance,HRAHRM,Rybka,A046735,09/06/2021,1411219,14049.00,Surveying
North West Leicestershire District Council,31UH,Corporate Director,Human Resources,HR,Wider Plan Ltd,A043948,09/06/2021,1411224,1275.00,Staff Benefit Scheme
North West Leicestershire District Council,31UH,Street Management,Environment - Street Scene,ESS,Elite Industrial Doors Ltd,A042135,09/06/2021,1411227,380.00,General Repairs
North West Leicestershire District Council,31UH,Legal & Democratic,Civic Expenses,LDCE,Radisson Blu Hotel East Midlands Airport,A039269,09/06/2021,1411275,1167.26,Room rental
North West Leicestershire District Council,31UH,Leisure & Culture,Cultural Services Arts & Events,CULTEV,Planning Solutions Consulting Limited,A046491,09/06/2021,1410750,5900.00,Consultants Fees
North West Leicestershire District Council,31UH,Housing,HRA Housing Management,HRAHM,House on the Hill Software Ltd,A042199,09/06/2021,1411214,6726.00,Consultants Fees
North West Leicestershire District Council,31UH,Chief Exec,Chief Executive,CHEX,Charnwood Borough Council,A000323,09/06/2021,1411347,257.00,Contributions
North West Leicestershire District Council,31UH,Finance,Financial Planning,FINPLA,Sports & Leisure Management Ltd,A045556,09/06/2021,1411352,120309.33,Payments To Contractor
North West Leicestershire District Council,31UH,Street Management,Environment - Street Scene,ESS,RAS Town Planning Services,A045293,09/06/2021,1411367,3432.00,Consultants Fees
North West Leicestershire District Council,31UH,Economic Development,Business Focus Group,BFG,KIWA CMT Testing,A045670,09/06/2021,1411364,695.00,Extend Free WiFi in Key Towns Project
North West Leicestershire District Council,31UH,Economic Development,Business Focus Group,BFG,East Midland Chamber,A044886,09/06/2021,1411386,1570.00,Subscriptions
North West Leicestershire District Council,31UH,Economic Development,Business Focus Group,BFG,Simon Foote Architects,A045677,09/06/2021,1411387,1150.00,Consultants Fees
North West Leicestershire District Council,31UH,Street Management,Environment Transport,ENOT,Watling JCB Ltd,A032114,09/06/2021,1409669,815.00,Scheduled Servicing - Parts
North West Leicestershire District Council,31UH,Housing,HRA Housing Management,HRAHM,Aareon UK Ltd,A045197,09/06/2021,1411375,2610.00,Contract Payments (Other) Ext
North West Leicestershire District Council,31UH,Housing,HRA Housing Management,HRAHM,Aareon UK Ltd,A045197,09/06/2021,1411376,1740.00,Contract Payments (Other) Ext
North West Leicestershire District Council,31UH,Housing,HRA Housing Management,HRAHM,Aareon UK Ltd,A045197,09/06/2021,1411377,870.00,Contract Payments (Other) Ext
North West Leicestershire District Council,31UH,Housing,HRA Housing Management,HRAHM,Aareon UK Ltd,A045197,09/06/2021,1411378,437.50,Contract Payments (Other) Ext
North West Leicestershire District Council,31UH,Housing,HRA Housing Management,HRAHM,Aareon UK Ltd,A045197,09/06/2021,1411379,411.66,Contract Payments (Other) Ext
North West Leicestershire District Council,31UH,Housing,HRA Housing Management,HRAHM,Aareon UK Ltd,A045197,09/06/2021,1411380,776.00,Contract Payments (Other) Ext
North West Leicestershire District Council,31UH,Housing,HRA Housing Management,HRAHM,Aareon UK Ltd,A045197,09/06/2021,1411399,870.00,Contract Payments (Other) Ext
North West Leicestershire District Council,31UH,Housing,HRA Housing Management,HRAHM,Aareon UK Ltd,A045197,09/06/2021,1411400,437.50,Contract Payments (Other) Ext
North West Leicestershire District Council,31UH,Housing,HRA Housing Management,HRAHM,Aareon UK Ltd,A045197,09/06/2021,1411401,1358.00,Contract Payments (Other) Ext
North West Leicestershire District Council,31UH,Housing,HRA Housing Management,HRAHM,Aareon UK Ltd,A045197,09/06/2021,1411406,1305.00,Contract Payments (Other) Ext
North West Leicestershire District Council,31UH,Finance,Financial Planning,FINPLA,Blaby District Council,A000180,16/06/2021,1410741,90260.00,Grants
North West Leicestershire District Council,31UH,Housing Repairs,HRA Housing Repairs & Maintenance,HRAHRM,Leicestershire County Council,A000950,16/06/2021,1411171,4547.07,Tipping Charges
North West Leicestershire District Council,31UH,Street Management,Environment Transport,ENOT,Ford & Slater Group Ltd,A000625,16/06/2021,1411249,277.67,Repairs - Parts
North West Leicestershire District Council,31UH,Communications,Corporate - Customer Services,CS,DX Network Services Limited,A000743,16/06/2021,1411366,1096.25,Postages
North West Leicestershire District Council,31UH,Communications,Corporate - Communications,CP,Reflec Signs & Graphics Ltd,A025348,16/06/2021,1411408,352.00,Contract Payments (Other) Ext
North West Leicestershire District Council,31UH,Street Management,Environment Parks,ENOP,David Musson Fencing Ltd,A046903,16/06/2021,1411414,635.50,Operational Purchases
North West Leicestershire District Council,31UH,Information Technology,ICT Services,ICT,ACS Systems (UK) Ltd T/a ACS Office Solutions,A043447,16/06/2021,1411416,22420.00,Contract Payments (Other) Ext
North West Leicestershire District Council,31UH,Street Management,Environment - Street Scene,ESS,Regarde Security Ltd,A013049,16/06/2021,1411423,607.20,Contract Payments (Other) Ext
North West Leicestershire District Council,31UH,Property Services,Property Facilities Management,PROPFM,Logic Fire and Security Ltd,A044439,16/06/2021,1411425,464.80,Fire Precaution Appliances
North West Leicestershire District Council,31UH,Street Management,Environment Parks,ENOP,Regarde Security Ltd,A013049,16/06/2021,1411426,2500.00,Building Security
North West Leicestershire District Council,31UH,Street Management,Environment Parks,ENOP,Regarde Security Ltd,A013049,16/06/2021,1411427,1062.60,Security Services
North West Leicestershire District Council,31UH,Information Technology,ICT Services,ICT,Six Degrees Technology Group Ltd,A044205,16/06/2021,1411434,19657.95,Admin Equipment - Maintenance
North West Leicestershire District Council,31UH,Environmental Health,Environmental Health & Licensing,EEHL,Tennals Pest Control,A045705,16/06/2021,1411435,1205.00,External Contractor Payments
North West Leicestershire District Council,31UH,Finance,Financial Planning,FINPLA,Embridge Consulting (UK) Ltd,A046643,16/06/2021,1411440,8675.25,Contract Payments (Other) Ext
North West Leicestershire District Council,31UH,Street Management,Environment - Street Scene,ESS,Groundsman Tools & Supplies LLP,A030744,16/06/2021,1411447,399.80,Operational Equipment
North West Leicestershire District Council,31UH,Finance,Financial Planning,FINPLA,Mazars LLP,A045078,16/06/2021,1411464,12099.00,Audit Commision Fees - Grant Claims
North West Leicestershire District Council,31UH,Legal & Democratic,Civic Expenses,LDCE,Vaughtons,A014238,16/06/2021,1411503,1002.14,General Civic Expenses
North West Leicestershire District Council,31UH,Information Technology,ICT Services,ICT,Freedom Communications (UK) Ltd,A032826,16/06/2021,1411507,537.06,C.O. - Call Charges
North West Leicestershire District Council,31UH,Property Services,Property Commercial Lettings,PROPCL,Purchase Power,A008204,16/06/2021,1411341,1841.11,Postages
North West Leicestershire District Council,31UH,Economic Development,Business Focus Group,BFG,Arch Communications (UK) Ltd,A046458,16/06/2021,1411409,1320.00,Consultants Fees
North West Leicestershire District Council,31UH,Finance,Financial Planning,FINPLA,Macildowie Associates Ltd,A046022,16/06/2021,1411410,1144.59,Agency Staff
North West Leicestershire District Council,31UH,Street Management,Environment Transport,ENOT,Certas Energy Uk Ltd,A043448,16/06/2021,1411419,540.20,Fuel
North West Leicestershire District Council,31UH,Finance,Financial Planning,FINPLA,Macildowie Associates Ltd,A046022,16/06/2021,1411436,1827.21,Agency Staff
North West Leicestershire District Council,31UH,Finance,Financial Planning,FINPLA,Macildowie Associates Ltd,A046022,16/06/2021,1411437,1467.31,Agency Staff
North West Leicestershire District Council,31UH,Planning & Development,Environment Community Planning,ECP,exi,A045557,16/06/2021,1411466,1750.00,Contract Payments (Other) Ext
North West Leicestershire District Council,31UH,Planning & Development,Environment - Town Centre/CCTV,ECCTV,Broadland Guarding Services Ltd,A042635,16/06/2021,1411470,4376.47,Service Contracts
North West Leicestershire District Council,31UH,Property Services,Property Facilities Management,PROPFM,Second Element Ltd,A046693,16/06/2021,1411473,324.67,Legionella Monitoring
North West Leicestershire District Council,31UH,Property Services,Property Facilities Management,PROPFM,Second Element Ltd,A046693,16/06/2021,1411474,324.67,Legionella Monitoring
North West Leicestershire District Council,31UH,Property Services,Property Facilities Management,PROPFM,Second Element Ltd,A046693,16/06/2021,1411475,324.67,Legionella Monitoring
North West Leicestershire District Council,31UH,Property Services,Property Facilities Management,PROPFM,Second Element Ltd,A046693,16/06/2021,1411476,324.67,Legionella Monitoring
North West Leicestershire District Council,31UH,Property Services,Property Facilities Management,PROPFM,Second Element Ltd,A046693,16/06/2021,1411478,783.98,Legionella Monitoring
North West Leicestershire District Council,31UH,Street Management,Environment - Street Scene,ESS,Holmes Building & Maintenance Limited,A046806,16/06/2021,1410594,600.00,Legal & Professional Services
North West Leicestershire District Council,31UH,Corporate Director,Human Resources,HR,InPhase Ltd,A044108,16/06/2021,1411512,2000.00,Computing
North West Leicestershire District Council,31UH,Corporate Director,Human Resources,HR,InPhase Ltd,A044108,16/06/2021,1411513,2700.00,Computing
North West Leicestershire District Council,31UH,Street Management,Environment Transport,ENOT,Transport Data Interchange Ltd,A046487,16/06/2021,1411518,600.00,Training Expenses
North West Leicestershire District Council,31UH,Street Management,Environment Transport,ENOT,Bucher Municipal Limited,A039355,16/06/2021,1411521,614.72,Scheduled Servicing - Parts
North West Leicestershire District Council,31UH,Street Management,Environment Transport,ENOT,Home IQ Automation & Control,A045265,16/06/2021,1411539,250.00,Operational Equipment
North West Leicestershire District Council,31UH,Street Management,Environment Transport,ENOT,Mertrux Ltd,A035291,16/06/2021,1411540,365.66,Repairs - Parts
North West Leicestershire District Council,31UH,Planning & Development,Environment - Development Control,EDC,TMP Worldwide Ltd,A045319,16/06/2021,1411549,3070.00,Employee Advertising
North West Leicestershire District Council,31UH,Finance,Financial Planning,FINPLA,Sports & Leisure Management Ltd,A045556,16/06/2021,1411550,16530.00,Payments To Contractor
North West Leicestershire District Council,31UH,Street Management,Environment Transport,ENOT,Second 2 None,A031408,16/06/2021,1411565,7390.00,vehicle Valeting
North West Leicestershire District Council,31UH,Street Management,Environment Transport,ENOT,Taylor Engineering & Fabrications Ltd,A036178,16/06/2021,1411566,379.94,Repairs - Parts
North West Leicestershire District Council,31UH,Street Management,Environment Transport,ENOT,Transport Data Interchange Ltd,A046487,16/06/2021,1411569,784.99,Operational Equipment
North West Leicestershire District Council,31UH,Street Management,Environment Transport,ENOT,Enterprise Rent-A-Car UK Ltd,A046419,16/06/2021,1411524,616.84,Hire Of Transport
North West Leicestershire District Council,31UH,Street Management,Environment Transport,ENOT,Enterprise Rent-A-Car UK Ltd,A046419,16/06/2021,1411525,524.44,Hire Of Transport
North West Leicestershire District Council,31UH,Street Management,Environment Transport,ENOT,Enterprise Rent-A-Car UK Ltd,A046419,16/06/2021,1411526,524.44,Hire Of Transport
North West Leicestershire District Council,31UH,Street Management,Environment Transport,ENOT,Enterprise Rent-A-Car UK Ltd,A046419,16/06/2021,1411527,524.44,Hire Of Transport
North West Leicestershire District Council,31UH,Street Management,Environment Transport,ENOT,Enterprise Rent-A-Car UK Ltd,A046419,16/06/2021,1411528,616.84,Hire Of Transport
North West Leicestershire District Council,31UH,Street Management,Environment Transport,ENOT,Enterprise Rent-A-Car UK Ltd,A046419,16/06/2021,1411529,524.44,Hire Of Transport
North West Leicestershire District Council,31UH,Street Management,Environment Transport,ENOT,Enterprise Rent-A-Car UK Ltd,A046419,16/06/2021,1411530,616.84,Hire Of Transport
North West Leicestershire District Council,31UH,Street Management,Environment Transport,ENOT,Enterprise Rent-A-Car UK Ltd,A046419,16/06/2021,1411531,622.84,Hire Of Transport
North West Leicestershire District Council,31UH,Street Management,Environment Transport,ENOT,Enterprise Rent-A-Car UK Ltd,A046419,16/06/2021,1411532,622.84,Hire Of Transport
North West Leicestershire District Council,31UH,Street Management,Environment Transport,ENOT,Enterprise Rent-A-Car UK Ltd,A046419,16/06/2021,1411533,524.44,Hire Of Transport
North West Leicestershire District Council,31UH,Street Management,Environment Transport,ENOT,Enterprise Rent-A-Car UK Ltd,A046419,16/06/2021,1411534,524.44,Hire Of Transport
North West Leicestershire District Council,31UH,Street Management,Environment Transport,ENOT,Enterprise Rent-A-Car UK Ltd,A046419,16/06/2021,1411535,524.44,Hire Of Transport
North West Leicestershire District Council,31UH,Street Management,Environment Transport,ENOT,Enterprise Rent-A-Car UK Ltd,A046419,16/06/2021,1411536,616.84,Hire Of Transport
North West Leicestershire District Council,31UH,Street Management,Environment Transport,ENOT,Enterprise Rent-A-Car UK Ltd,A046419,16/06/2021,1411537,524.44,Hire Of Transport
North West Leicestershire District Council,31UH,Street Management,Environment Transport,ENOT,Riverside Truck Rental Ltd,A045702,16/06/2021,1411551,2448.30,Hire Of Transport
North West Leicestershire District Council,31UH,Street Management,Environment Transport,ENOT,Riverside Truck Rental Ltd,A045702,16/06/2021,1411552,1470.00,Hire Of Transport
North West Leicestershire District Council,31UH,Street Management,Environment Transport,ENOT,Riverside Truck Rental Ltd,A045702,16/06/2021,1411560,3759.00,Hire Of Transport
North West Leicestershire District Council,31UH,Street Management,Environment Transport,ENOT,Riverside Truck Rental Ltd,A045702,16/06/2021,1411561,1050.00,Hire Of Transport
North West Leicestershire District Council,31UH,Street Management,Environment Transport,ENOT,Riverside Truck Rental Ltd,A045702,16/06/2021,1411562,4935.00,Hire Of Transport
North West Leicestershire District Council,31UH,Street Management,Environment Transport,ENOT,Riverside Truck Rental Ltd,A045702,16/06/2021,1411563,5250.00,Hire Of Transport
North West Leicestershire District Council,31UH,Street Management,Environment Transport,ENOT,Trade Price Windscreens Ltd,A040486,16/06/2021,1411567,420.00,Non Insurance Damage
North West Leicestershire District Council,31UH,Information Technology,ICT Services,ICT,ACS Systems (UK) Ltd T/a ACS Office Solutions,A043447,16/06/2021,1409096,1310.00,Operational Equipment
North West Leicestershire District Council,31UH,Street Management,Environment Transport,ENOT,Enterprise Flex-E-Rent,A046516,16/06/2021,1411666,4886.92,Hire Of Transport
North West Leicestershire District Council,31UH,Leisure & Culture,Cultural Services Arts & Events,CULTEV,Global Tourism Solutions (UK) Ltd,A046658,16/06/2021,1411670,2150.00,Special Events
North West Leicestershire District Council,31UH,Property Services,Property Commercial Lettings,PROPCL,Logic Fire and Security Ltd,A044439,16/06/2021,1402971,277.95,General Repairs
North West Leicestershire District Council,31UH,Chief Exec,Chief Executive,CHEX,District Councils' Network,A039416,16/06/2021,1409767,1559.00,Subscriptions
North West Leicestershire District Council,31UH,Information Technology,ICT Services,ICT,ACS Systems (UK) Ltd T/a ACS Office Solutions,A043447,16/06/2021,1411415,2179.00,Computing
North West Leicestershire District Council,31UH,Housing,HRA Housing Management,HRAHM,Aareon UK Ltd,A045197,16/06/2021,1411663,870.00,Contract Payments (Other) Ext
North West Leicestershire District Council,31UH,Corporate Director,Human Resources,HR,Wider Plan Ltd,A043948,16/06/2021,1411665,1282.00,Staff Benefit Scheme
North West Leicestershire District Council,31UH,Street Management,Environment - Street Scene,ESS,Wigston Car Breakers,A043467,16/06/2021,1411678,320.00,Payments To Contractor
North West Leicestershire District Council,31UH,Street Management,Environment Waste Management,ENOWM,Groundsman Tools & Supplies LLP,A030744,23/06/2021,1410817,421.05,Operational Equipment
North West Leicestershire District Council,31UH,Leisure & Culture,Sport & Physical Activity,SPA,Elliott Group Limited,A005413,23/06/2021,1411467,522.58,Secure Storage and Portable Accomodation
North West Leicestershire District Council,31UH,Finance,Financial Planning,FINPLA,Macildowie Associates Ltd,A046022,23/06/2021,1411684,1565.67,Agency Staff
North West Leicestershire District Council,31UH,Finance,Financial Planning,FINPLA,Macildowie Associates Ltd,A046022,23/06/2021,1411685,2076.38,Agency Staff
North West Leicestershire District Council,31UH,Street Management,Environment Parks,ENOP,Commutaports Ltd,A000389,23/06/2021,1411687,2670.00,Street Furniture
North West Leicestershire District Council,31UH,Street Management,Environment Transport,ENOT,John Merison BMC Ltd,A001092,23/06/2021,1411688,854.48,Non Insurance Damage
North West Leicestershire District Council,31UH,Economic Development,Business Focus Group,BFG,Perfect Circle JV Ltd,A046694,23/06/2021,1411700,828.00,PRE - Public Realm Masterplan
North West Leicestershire District Council,31UH,Housing,HRA Housing Management,HRAHM,Solace Group Ltd,A015641,23/06/2021,1411701,1150.00,Training Expenses
North West Leicestershire District Council,31UH,Street Management,Environment Parks,ENOP,Rigby Taylor Limited,A001392,23/06/2021,1411728,390.00,Operational Purchases
North West Leicestershire District Council,31UH,Planning & Development,Environment Planning Policy,EPP,Timothy Leader,A044312,23/06/2021,1411753,440.00,External Legal Fees & Advice
North West Leicestershire District Council,31UH,Leisure & Culture,Cultural Services Arts & Events,CULTEV,Reflec Signs & Graphics Ltd,A025348,23/06/2021,1411761,550.00,N.W.L. Arts Festival
North West Leicestershire District Council,31UH,Planning & Development,Environment - Town Centre/CCTV,ECCTV,GovNet Communications,A032865,23/06/2021,1411765,295.00,Equality & Diversity Expenditure
North West Leicestershire District Council,31UH,Leisure & Culture,Cultural Services Arts & Events,CULTEV,Ashby Canal Association,A034666,23/06/2021,1411810,20000.00,Grants
North West Leicestershire District Council,31UH,Chief Exec,Chief Executive,CHEX,Ecus Ltd,A044014,23/06/2021,1411811,410.00,Advertising
North West Leicestershire District Council,31UH,Chief Exec,Chief Executive,CHEX,Sable Leigh Consultancy Ltd T/A SLC Rail,A042727,23/06/2021,1411812,3312.50,Consultants Fees
North West Leicestershire District Council,31UH,Information Technology,ICT Services,ICT,Phoenix Software Limited,A001298,23/06/2021,1411355,388.61,Computing
North West Leicestershire District Council,31UH,Chief Exec,Chief Executive,CHEX,Edwards & Edwards Consultancy Ltd,A041694,23/06/2021,1411689,667.00,Consultants Fees
North West Leicestershire District Council,31UH,Property Services,Property Facilities Management,PROPFM,TECSERV UK LIMITED,A028261,23/06/2021,1411698,964.75,General Repairs
North West Leicestershire District Council,31UH,Chief Exec,Chief Executive,CHEX,Edwards & Edwards Consultancy Ltd,A041694,23/06/2021,1411715,1260.00,Legal & Professional Services
North West Leicestershire District Council,31UH,Street Management,Environment Transport,ENOT,Ford Motor Company T/A Parts Plus,A045765,23/06/2021,1411734,262.57,Repairs - Parts
North West Leicestershire District Council,31UH,Street Management,Environment Transport,ENOT,Ford Motor Company T/A Parts Plus,A045765,23/06/2021,1411735,331.66,Repairs - Parts
North West Leicestershire District Council,31UH,Property Services,Property Facilities Management,PROPFM,Second Element Ltd,A046693,23/06/2021,1411751,783.98,Legionella Monitoring
North West Leicestershire District Council,31UH,Property Services,Property Facilities Management,PROPFM,Second Element Ltd,A046693,23/06/2021,1411752,324.67,Legionella Monitoring
North West Leicestershire District Council,31UH,Street Management,Environment Transport,ENOT,Ford Motor Company T/A Parts Plus,A045765,23/06/2021,1411784,1500.84,Repairs - Parts
North West Leicestershire District Council,31UH,Information Technology,ICT Services,ICT,Dell Computer Corporation Ltd,A000470,23/06/2021,1411809,4816.26,Contract Payments (Other) Ext
North West Leicestershire District Council,31UH,Street Management,Environment - Street Scene,ESS,ADT Fire And Security,A000021,23/06/2021,1411895,277.54,Security Services
North West Leicestershire District Council,31UH,Planning & Development,Environment - Development Control,EDC,TMP Worldwide Ltd,A045319,23/06/2021,1411919,742.04,Advertising
North West Leicestershire District Council,31UH,Street Management,Environment - Street Scene,ESS,Enforcement Services Ltd,A030894,23/06/2021,1411888,2398.00,Legal & Professional Services
North West Leicestershire District Council,31UH,Street Management,Environment Waste Management,ENOWM,Groundsman Tools & Supplies LLP,A030744,23/06/2021,1411893,898.00,Operational Equipment
North West Leicestershire District Council,31UH,Planning & Development,Environment - Development Control,EDC,Trent Rivers Trust,A041633,23/06/2021,1411898,7277.00,River Mease project
North West Leicestershire District Council,31UH,Chief Exec,Chief Executive,CHEX,Amion Consulting Ltd,A046790,23/06/2021,1411899,3500.00,PRE - District Signs
North West Leicestershire District Council,31UH,Street Management,Environment - Street Scene,ESS,Evergreen Trees & Shrubs,A046916,23/06/2021,1411915,1124.25,Contract Payments (Other) Ext
North West Leicestershire District Council,31UH,Information Technology,ICT Services,ICT,Phoenix Software Limited,A001298,23/06/2021,1411916,5700.00,Contract Payments (Other) Ext
North West Leicestershire District Council,31UH,Information Technology,ICT Services,ICT,Phoenix Software Limited,A001298,23/06/2021,1411917,950.00,Contract Payments (Other) Ext
North West Leicestershire District Council,31UH,Street Management,Environment Transport,ENOT,Logistics UK,A027981,23/06/2021,1411929,257.25,Consumable Materials
North West Leicestershire District Council,31UH,Housing Repairs,HRA Housing Repairs & Maintenance,HRAHRM,Travis Perkins Trading Co Ltd,A001693,23/06/2021,1411932,5671.38,General Materials
North West Leicestershire District Council,31UH,Housing Repairs,HRA Housing Repairs & Maintenance,HRAHRM,Travis Perkins Trading Co Ltd,A001693,23/06/2021,1411933,104016.80,General Materials
North West Leicestershire District Council,31UH,Housing Repairs,HRA Housing Repairs & Maintenance,HRAHRM,Travis Perkins Trading Co Ltd,A001693,23/06/2021,1411936,1224.00,General Materials
North West Leicestershire District Council,31UH,Finance,Financial Planning,FINPLA,Macildowie Associates Ltd,A046022,23/06/2021,1411937,2062.53,Agency Staff
North West Leicestershire District Council,31UH,Finance,Financial Planning,FINPLA,Macildowie Associates Ltd,A046022,23/06/2021,1411938,799.15,Agency Staff
North West Leicestershire District Council,31UH,Street Management,Environment Waste Management,ENOWM,Groundsman Tools & Supplies LLP,A030744,23/06/2021,1411720,449.00,Operational Equipment
North West Leicestershire District Council,31UH,Property Services,Property Facilities Management,PROPFM,Elitetele.com Plc T/A Elite Group,A036263,23/06/2021,1411934,2570.80,Telephones
North West Leicestershire District Council,31UH,Housing Repairs,HRA Housing Repairs & Maintenance,HRAHRM,Central Midlands Assessment & Training Ltd (CMAT),A046906,30/06/2021,1411782,900.00,Training Courses (Organised)
North West Leicestershire District Council,31UH,Street Management,Environment Transport,ENOT,Euromec Contracts,A043934,30/06/2021,1411896,489.56,Repairs - Parts
North West Leicestershire District Council,31UH,Street Management,Environment Transport,ENOT,Euromec Contracts,A043934,30/06/2021,1411897,347.10,Repairs - Parts
North West Leicestershire District Council,31UH,Communications,Corporate - Customer Services,CS,Quadient UK Ltd,A000079,30/06/2021,1411941,449.98,Postages
North West Leicestershire District Council,31UH,Street Management,Environment - Street Scene,ESS,Enforcement Services Ltd,A030894,30/06/2021,1411944,3682.00,Legal & Professional Services
North West Leicestershire District Council,31UH,Planning & Development,Environment - Development Control,EDC,TMP Worldwide Ltd,A045319,30/06/2021,1411945,668.76,Advertising
North West Leicestershire District Council,31UH,Finance,Exchequer Services,EXCH,TMP Worldwide Ltd,A045319,30/06/2021,1411947,294.20,Advertising
North West Leicestershire District Council,31UH,Street Management,Environment Transport,ENOT,J F Lloyd & Sons,A000991,30/06/2021,1411952,330.00,Hire Of Operational Equipment
North West Leicestershire District Council,31UH,Street Management,Environment Transport,ENOT,Anderson Commercials Limited,A033469,30/06/2021,1411954,685.00,Mot
North West Leicestershire District Council,31UH,Street Management,Environment Transport,ENOT,Henton & Chattell Limited,A000757,30/06/2021,1411958,784.36,Repairs - Parts
North West Leicestershire District Council,31UH,Street Management,Environment Transport,ENOT,Trade Price Windscreens Ltd,A040486,30/06/2021,1411959,255.00,Repairs - Parts
North West Leicestershire District Council,31UH,Corporate Director,Human Resources,HR,Health Management Ltd,A038840,30/06/2021,1411960,800.00,Medical Fees
North West Leicestershire District Council,31UH,Street Management,Environment - Street Scene,ESS,Coptrz,A045068,30/06/2021,1411961,823.00,Training Expenses
North West Leicestershire District Council,31UH,Planning & Development,Environment - Development Control,EDC,TMP Worldwide Ltd,A045319,30/06/2021,1411962,621.18,Advertising
North West Leicestershire District Council,31UH,Street Management,Environment - Street Scene,ESS,Air Quality Consultants,A031783,30/06/2021,1411963,2100.00,External Legal Fees & Advice
North West Leicestershire District Council,31UH,Planning & Development,Environment - Development Control,EDC,TMP Worldwide Ltd,A045319,30/06/2021,1411964,678.60,Advertising
North West Leicestershire District Council,31UH,Legal & Democratic,Civic Expenses,LDCE,Chameleon Pro Audio T/A Lux Technical Ltd,A027592,30/06/2021,1411966,2500.00,Sound and Lighting
North West Leicestershire District Council,31UH,Planning & Development,Environment - Development Control,EDC,Benchmark Archaeology,A046679,30/06/2021,1411967,1745.00,River Mease project
North West Leicestershire District Council,31UH,Property Services,Property Commercial Lettings,PROPCL,Coalville Cleaning Services,A003037,30/06/2021,1412004,355.18,Contract Cleaning
North West Leicestershire District Council,31UH,Street Management,Environment Transport,ENOT,ESPO,A000958,30/06/2021,1412007,330.00,Operational Equipment
North West Leicestershire District Council,31UH,Property Services,Property Facilities Management,PROPFM,Regarde Security Ltd,A013049,30/06/2021,1412013,607.20,Building Security
North West Leicestershire District Council,31UH,Property Services,Property Commercial Lettings,PROPCL,Regarde Security Ltd,A013049,30/06/2021,1412018,303.60,Security Services
North West Leicestershire District Council,31UH,Street Management,Environment Waste Management,ENOWM,Kaefer Ltd,A044187,30/06/2021,1412025,520.61,Cleansing services
North West Leicestershire District Council,31UH,Street Management,Environment Transport,ENOT,Certas Energy Uk Ltd,A043448,30/06/2021,1412045,15323.77,Fuel
North West Leicestershire District Council,31UH,Leisure & Culture,Sport & Physical Activity,SPA,Enrych,A039352,30/06/2021,1411766,437.50,Local Sports Alliance Expenditure
North West Leicestershire District Council,31UH,Environmental Health,Environmental Health & Licensing,EEHL,Eville And Jones Limited,A033670,30/06/2021,1412037,3948.20,Vet Inspection
North West Leicestershire District Council,31UH,Information Technology,ICT Services,ICT,ACS Systems (UK) Ltd T/a ACS Office Solutions,A043447,30/06/2021,1412050,1419.00,Door Access Systems
North West Leicestershire District Council,31UH,Property Services,Property Commercial Lettings,PROPCL,John Merison BMC Ltd,A001092,30/06/2021,1412052,1835.40,Asset Protection
North West Leicestershire District Council,31UH,Street Management,Environment Transport,ENOT,Westbury Industrial Supplies Limited,A009933,30/06/2021,1412054,769.20,Protective Clothing
North West Leicestershire District Council,31UH,Communications,Corporate - Customer Services,CS,Quadient UK Ltd,A000079,30/06/2021,1412061,1646.04,Equipment Operating Leases
North West Leicestershire District Council,31UH,Street Management,Environment Transport,ENOT,Coalville Cleaning Services,A003037,30/06/2021,1412068,1694.93,Contract Cleaning
North West Leicestershire District Council,31UH,Property Services,Property Facilities Management,PROPFM,Ksa Consulting Engineers Ltd,A008757,30/06/2021,1412073,600.00,General Repairs
North West Leicestershire District Council,31UH,Street Management,Environment Transport,ENOT,Selby's Garage (Woodhouse) Ltd,A044011,30/06/2021,1412076,1011.33,Hire Of Operational Equipment
North West Leicestershire District Council,31UH,Street Management,Environment Transport,ENOT,Selby's Garage (Woodhouse) Ltd,A044011,30/06/2021,1412077,327.08,Hire Of Operational Equipment
North West Leicestershire District Council,31UH,Property Services,Property Facilities Management,PROPFM,Citron Hygiene Ltd,A033313,30/06/2021,1412092,884.64,Cleaning & Domestic Equipment
North West Leicestershire District Council,31UH,Property Services,Property Facilities Management,PROPFM,Citron Hygiene Ltd,A033313,30/06/2021,1412093,884.64,Cleaning & Domestic Equipment
North West Leicestershire District Council,31UH,Property Services,Property Facilities Management,PROPFM,Citron Hygiene Ltd,A033313,30/06/2021,1412094,884.64,Cleaning & Domestic Equipment
North West Leicestershire District Council,31UH,Street Management,Environment Parks,ENOP,Public Sector Software Ltd,A029902,30/06/2021,1411721,2310.00,Training Expenses
North West Leicestershire District Council,31UH,Street Management,Environment Parks,ENOP,Rigby Taylor Limited,A001392,30/06/2021,1411729,1867.00,Operational Purchases
North West Leicestershire District Council,31UH,Finance,Financial Planning,FINPLA,Macildowie Associates Ltd,A046022,30/06/2021,1412214,1565.67,Agency Staff
North West Leicestershire District Council,31UH,Property Services,Property Commercial Lettings,PROPCL,Coalville Cleaning Services,A003037,30/06/2021,1412055,667.62,Contract Cleaning
North West Leicestershire District Council,31UH,Planning & Development,Environment - Development Control,EDC,TH-Environmental Ltd,A046902,30/06/2021,1411946,14364.00,River Mease project
North West Leicestershire District Council,31UH,Chief Exec,Chief Executive,CHEX,Thomas Lister Ltd,A045975,30/06/2021,1412001,8613.15,Consultants Fees
North West Leicestershire District Council,31UH,Legal & Democratic,Civic Expenses,LDCE,Radisson Blu Hotel East Midlands Airport,A039269,30/06/2021,1412021,1167.26,Room Rental
North West Leicestershire District Council,31UH,Housing Repairs,HRA Housing Repairs & Maintenance,HRAHRM,CLC,A036843,30/06/2021,1412032,1200.00,Fire Prevention and Maintenance
North West Leicestershire District Council,31UH,Planning & Development,Environment - Development Control,EDC,Landscape Science Consultancy Ltd,A045654,30/06/2021,1412035,602.00,River Mease project
North West Leicestershire District Council,31UH,Property Services,Property Facilities Management,PROPFM,Leicestershire County Council,A000950,30/06/2021,1412044,281.00,Signs & Notices
North West Leicestershire District Council,31UH,Planning & Development,Environment - Development Control,EDC,Rob Thompson Urbanism Limited,A045846,30/06/2021,1412046,3150.00,Urban Design/Our Place Expenditure
North West Leicestershire District Council,31UH,Planning & Development,Environment - Development Control,EDC,Rob Thompson Urbanism Limited,A045846,30/06/2021,1412047,4784.40,Urban Design/Our Place Expenditure
North West Leicestershire District Council,31UH,Property Services,Property Commercial Lettings,PROPCL,Logic Fire and Security Ltd,A044439,30/06/2021,1412072,288.90,General Repairs
North West Leicestershire District Council,31UH,Information Technology,ICT Services,ICT,ACS Systems (UK) Ltd T/a ACS Office Solutions,A043447,30/06/2021,1403821,2975.00,Admin Equipment - Purchased & Recharged
North West Leicestershire District Council,31UH,Housing,HRA Housing Management,HRAHM,Alliance Contracting Solutions Ltd,A043325,30/06/2021,1410222,10351.50,Legal & Professional Services
North West Leicestershire District Council,31UH,Housing Repairs,HRA Housing Repairs & Maintenance,HRAHRM,Alliance Contracting Solutions Ltd,A043325,30/06/2021,1410599,5065.63,Legal & Professional Services
North West Leicestershire District Council,31UH,Street Management,Environment Transport,ENOT,Axle Weight Technology Ltd,A032268,30/06/2021,1411221,3771.00,Operational Equipment - Rep & Maint
North West Leicestershire District Council,31UH,Information Technology,ICT Services,ICT,British Telecommunications Plc,A000233,02/06/2021,1411067,347.55,General Repairs
North West Leicestershire District Council,31UH,Housing,HRA Housing Management,HRAHM,Redacted - Personal Data,A046891,02/06/2021,1411162,2000.00,Under Occupancy Incentives
North West Leicestershire District Council,31UH,Housing Strategy,Community - Housing Strategy,HS,Elton Properties Lettings Ltd,A046892,02/06/2021,1411169,470.00,Homelessness prevention
North West Leicestershire District Council,31UH,Planning & Development,Environment - Town Centre/CCTV,ECCTV,Lambert Smith Hampton,A020974,,1411173,-280.75,Service Charges
North West Leicestershire District Council,31UH,Planning & Development,Environment - Town Centre/CCTV,ECCTV,Lambert Smith Hampton,A020974,,1411174,-280.75,Service Charges
North West Leicestershire District Council,31UH,Finance,Exchequer Services,EXCH,Click Travel Ltd,A044308,02/06/2021,1411181,2588.13,Travel and Subsistence
North West Leicestershire District Council,31UH,Economic Development,Business Focus Group,BFG,Feed the Need,A046771,02/06/2021,1411182,1000.00,Grants
North West Leicestershire District Council,31UH,Corporate Director,Human Resources,HR,Redacted - Personal Data,A046893,02/06/2021,1411184,4895.00,Grants
North West Leicestershire District Council,31UH,Neighbourhoods & Communities,N & C Neighbourhoods,NACN,Heather St John's Juniors FC,A046894,02/06/2021,1411185,500.00,Grants
North West Leicestershire District Council,31UH,Economic Development,Business Focus Group,BFG,North West Leicestershire Shopmobility,A029258,02/06/2021,1411186,2000.00,Shopmobility
North West Leicestershire District Council,31UH,Street Management,Environment Waste Management,ENOWM,Environment Media Group Ltd,A045305,02/06/2021,1411191,329.00,Training Expenses
North West Leicestershire District Council,31UH,Street Management,Environment Waste Management,ENOWM,Environment Media Group Ltd,A045305,02/06/2021,1411192,-329.00,Training Expenses
North West Leicestershire District Council,31UH,Information Technology,ICT Services,ICT,Canon UK Ltd,A040459,09/06/2021,1411255,383.37,Equipment Operating Leases
North West Leicestershire District Council,31UH,Housing,HRA Housing Management,HRAHM,JLA Limited,A043639,09/06/2021,1411260,427.84,Cleaning & Domestic Equipment
North West Leicestershire District Council,31UH,Housing,HRA Housing Management,HRAHM,JLA Limited,A043639,09/06/2021,1411262,412.00,Cleaning & Domestic Equipment
North West Leicestershire District Council,31UH,Property Services,Property Commercial Lettings,PROPCL,Water Plus Limited,A044043,09/06/2021,1411265,938.30,Water Charges (Metered)
North West Leicestershire District Council,31UH,Property Services,Property Facilities Management,PROPFM,Water Plus Limited,A044043,09/06/2021,1411266,644.35,Water Charges (Metered)
North West Leicestershire District Council,31UH,Property Services,Property Commercial Lettings,PROPCL,British Telecommunications Plc,A000233,09/06/2021,1411268,546.16,Telephones
North West Leicestershire District Council,31UH,Legal & Democratic,Legal Services,LDLS,Recognising Excellence Ltd,A040432,09/06/2021,1411276,1200.00,Training Expenses
North West Leicestershire District Council,31UH,Legal & Democratic,Legal Services,LDLS,No 5 Chambers Ltd,A022238,09/06/2021,1411277,625.00,Legal & Professional Services
North West Leicestershire District Council,31UH,Information Technology,ICT Services,ICT,Canon UK Ltd,A040459,09/06/2021,1411278,274.79,Photo Copier - Copy Charges Rental
North West Leicestershire District Council,31UH,Information Technology,ICT Services,ICT,Canon UK Ltd,A040459,09/06/2021,1411280,1350.79,Photo Copier - Copy Charges Rental
North West Leicestershire District Council,31UH,Planning & Development,Environment - Development Control,EDC,Raymond Crawford,A046900,09/06/2021,1411362,1000.00,Training Expenses
North West Leicestershire District Council,31UH,Finance,Exchequer Services,EXCH,Comensura Limited,A036958,09/06/2021,1411374,23043.03,Agency Staff
North West Leicestershire District Council,31UH,Environmental Health,Environmental Health & Licensing,EEHL,Redacted - Personal Data,A046904,09/06/2021,1411389,256.00,Taxi - Licences
North West Leicestershire District Council,31UH,Information Technology,ICT Services,ICT,EE Ltd (Airtime),A018592,09/06/2021,1411391,4684.62,Mobile Telephones
North West Leicestershire District Council,31UH,Information Technology,ICT Services,ICT,EE Ltd (Airtime),A018592,09/06/2021,1411392,2680.61,Mobile Telephones
North West Leicestershire District Council,31UH,Finance,Revenues,REVS,Redacted - Personal Data,A000133,10/06/2021,1411450,500.00,Test and Trace Grants
North West Leicestershire District Council,31UH,Finance,Financial Planning,FINPLA,Leicestershire County Council,A000950,10/06/2021,1411453,4859265.00,Precept
North West Leicestershire District Council,31UH,Finance,Financial Planning,FINPLA,Leicestershire County Council,A000950,10/06/2021,1411454,2290309.00,Precept
North West Leicestershire District Council,31UH,Finance,Financial Planning,FINPLA,Leicestershire County Council,A000950,10/06/2021,1411455,4859265.00,Precept
North West Leicestershire District Council,31UH,Finance,Financial Planning,FINPLA,"Leicester, Leicestershire & Rutland Combined Fire Authority",A028339,10/06/2021,1411456,238579.00,Precept
North West Leicestershire District Council,31UH,Finance,Financial Planning,FINPLA,The Office of the Police and Crime Commissioner for Leicestershire,A007096,10/06/2021,1411457,855131.80,Precept
North West Leicestershire District Council,31UH,Finance,Financial Planning,FINPLA,"Leicester, Leicestershire & Rutland Combined Fire Authority",A028339,10/06/2021,1411458,238579.00,Precept
North West Leicestershire District Council,31UH,Finance,Financial Planning,FINPLA,The Office of the Police and Crime Commissioner for Leicestershire,A007096,10/06/2021,1411459,855131.80,Precept
North West Leicestershire District Council,31UH,Finance,Financial Planning,FINPLA,Department for Communities & Local Government,A028518,10/06/2021,1411460,2796461.00,Subsidy Receipts & Repayments
North West Leicestershire District Council,31UH,Finance,Financial Planning,FINPLA,Department for Communities & Local Government,A028518,10/06/2021,1411461,2796461.00,Subsidy Receipts & Repayments
North West Leicestershire District Council,31UH,Legal & Democratic,Legal Services,LDLS,Davis Coleman Limited,A045942,16/06/2021,1411442,390.00,Legal & Professional Services
North West Leicestershire District Council,31UH,Legal & Democratic,Legal Services,LDLS,Browne Jacobson LLP,A042988,16/06/2021,1411443,304.00,Legal & Professional Services
North West Leicestershire District Council,31UH,Legal & Democratic,Legal Services,LDLS,LexisNexis UK,A006155,16/06/2021,1411445,1151.00,Books & Publications
North West Leicestershire District Council,31UH,Housing,HRA Housing Management,HRAHM,Caron George,A046907,16/06/2021,1411462,250.00,Surveillance
North West Leicestershire District Council,31UH,Finance,Exchequer Services,EXCH,Click Travel Ltd,A044308,16/06/2021,1411463,3159.77,Travel and Subsistence
North West Leicestershire District Council,31UH,Finance,Exchequer Services,EXCH,Comensura Limited,A036958,16/06/2021,1411506,34778.17,Agency Staff
North West Leicestershire District Council,31UH,Finance,Exchequer Services,EXCH,Click Travel Ltd,A044308,16/06/2021,1411510,2664.17,Travel and Subsistence
North West Leicestershire District Council,31UH,Finance,Exchequer Services,EXCH,HM Revenues & Customs,A038465,16/06/2021,1411517,502.80,Payment To Inland Revenue
North West Leicestershire District Council,31UH,Housing Strategy,Community - Housing Strategy,HS,Redacted - Personal Data,A046912,16/06/2021,1411576,1500.00,Compensation
North West Leicestershire District Council,31UH,Legal & Democratic,Electoral & Land Charges,LDELC,Electoral Reform Services Limited,A038581,16/06/2021,1411659,6058.22,Election Fees
North West Leicestershire District Council,31UH,Legal & Democratic,Electoral & Land Charges,LDELC,Electoral Reform Services Limited,A038581,16/06/2021,1411660,933.01,Election Fees
North West Leicestershire District Council,31UH,Legal & Democratic,Electoral & Land Charges,LDELC,Sweet & Maxwell Ltd,A001611,16/06/2021,1411661,288.00,Books & Publications
North West Leicestershire District Council,31UH,Legal & Democratic,Legal Services,LDLS,No 5 Chambers Ltd,A022238,16/06/2021,1411667,917.00,Legal & Professional Services
North West Leicestershire District Council,31UH,Housing,HRA Housing Management,HRAHM,JLA Limited,A043639,16/06/2021,1411676,282.00,Cleaning & Domestic Equipment
North West Leicestershire District Council,31UH,Information Technology,ICT Services,ICT,Idox Software Ltd,A034157,16/06/2021,1411672,886.57,Software Licences
North West Leicestershire District Council,31UH,Communications,Corporate - Customer Services,CS,Quadient UK Ltd,A000079,23/06/2021,1411704,3182.00,Postages
North West Leicestershire District Council,31UH,Housing Strategy,Community - Housing Strategy,HS,The Bridge (East Midlands),A033578,23/06/2021,1411718,26408.00,Grants
North West Leicestershire District Council,31UH,Housing Strategy,Community - Housing Strategy,HS,Falcon Support,A046422,23/06/2021,1411719,12127.00,Grants
North West Leicestershire District Council,31UH,Housing Strategy,Community - Housing Strategy,HS,Bradgate Property Management,A034945,23/06/2021,1411760,410.00,Homelessness prevention
North West Leicestershire District Council,31UH,Environmental Health,Environmental Health & Licensing,EEHL,Animal Care Services Limited,A046488,23/06/2021,1411762,2166.55,Stray Dog Service
North West Leicestershire District Council,31UH,Information Technology,ICT Services,ICT,De Lage Landen Leasing Limited,A046819,23/06/2021,1411767,444.00,Equipment Operating Leases
North West Leicestershire District Council,31UH,Housing Repairs,HRA Housing Repairs & Maintenance,HRAHRM,Closomat Ltd,A045814,23/06/2021,1411768,295.00,Plumbing & Heating
North West Leicestershire District Council,31UH,Legal & Democratic,Electoral & Land Charges,LDELC,Royal Mail Group Plc,A001418,23/06/2021,1411778,1500.00,Postages
North West Leicestershire District Council,31UH,Finance,Exchequer Services,EXCH,Click Travel Ltd,A044308,23/06/2021,1411785,1889.05,Travel and Subsistence
North West Leicestershire District Council,31UH,Housing Repairs,HRA Housing Repairs & Maintenance,HRAHRM,Morgan Lambert Limited,A044192,23/06/2021,1411786,319.20,Servicing
North West Leicestershire District Council,31UH,Housing Repairs,HRA Housing Repairs & Maintenance,HRAHRM,Morgan Lambert Limited,A044192,23/06/2021,1411787,638.40,Servicing
North West Leicestershire District Council,31UH,Housing Repairs,HRA Housing Repairs & Maintenance,HRAHRM,Morgan Lambert Limited,A044192,23/06/2021,1411788,319.20,Servicing
North West Leicestershire District Council,31UH,Housing Repairs,HRA Housing Repairs & Maintenance,HRAHRM,Morgan Lambert Limited,A044192,23/06/2021,1411789,718.20,Servicing
North West Leicestershire District Council,31UH,Housing Repairs,HRA Housing Repairs & Maintenance,HRAHRM,Morgan Lambert Limited,A044192,23/06/2021,1411790,1197.00,Servicing
North West Leicestershire District Council,31UH,Housing Repairs,HRA Housing Repairs & Maintenance,HRAHRM,Sure Maintenance Ltd,A040460,23/06/2021,1411792,312.00,Plumbing & Heating
North West Leicestershire District Council,31UH,Housing Repairs,HRA Housing Repairs & Maintenance,HRAHRM,Sure Maintenance Ltd,A040460,23/06/2021,1411795,558.75,Plumbing & Heating
North West Leicestershire District Council,31UH,Housing Repairs,HRA Housing Repairs & Maintenance,HRAHRM,Sure Maintenance Ltd,A040460,23/06/2021,1411796,18735.94,Plumbing & Heating
North West Leicestershire District Council,31UH,Housing Repairs,HRA Housing Repairs & Maintenance,HRAHRM,Sure Maintenance Ltd,A040460,23/06/2021,1411797,784.01,Plumbing & Heating
North West Leicestershire District Council,31UH,Housing Repairs,HRA Housing Repairs & Maintenance,HRAHRM,Sure Maintenance Ltd,A040460,23/06/2021,1411798,2565.64,Plumbing & Heating
North West Leicestershire District Council,31UH,Housing Repairs,HRA Housing Repairs & Maintenance,HRAHRM,Sure Maintenance Ltd,A040460,23/06/2021,1411799,18752.39,Plumbing & Heating
North West Leicestershire District Council,31UH,Housing Repairs,HRA Housing Repairs & Maintenance,HRAHRM,Sure Maintenance Ltd,A040460,23/06/2021,1411800,784.01,Plumbing & Heating
North West Leicestershire District Council,31UH,Housing Repairs,HRA Housing Repairs & Maintenance,HRAHRM,Sure Maintenance Ltd,A040460,23/06/2021,1411801,2565.64,Plumbing & Heating
North West Leicestershire District Council,31UH,Housing Repairs,HRA Housing Repairs & Maintenance,HRAHRM,Sure Maintenance Ltd,A040460,23/06/2021,1411802,11826.00,Plumbing & Heating
North West Leicestershire District Council,31UH,Housing Repairs,HRA Housing Repairs & Maintenance,HRAHRM,Sure Maintenance Ltd,A040460,23/06/2021,1411803,2207.77,Plumbing & Heating
North West Leicestershire District Council,31UH,Housing Repairs,HRA Housing Repairs & Maintenance,HRAHRM,Sure Maintenance Ltd,A040460,23/06/2021,1411804,3536.46,Plumbing & Heating
North West Leicestershire District Council,31UH,Housing Repairs,HRA Housing Repairs & Maintenance,HRAHRM,Sure Maintenance Ltd,A040460,23/06/2021,1411807,1041.62,Plumbing & Heating
North West Leicestershire District Council,31UH,Housing Repairs,HRA Housing Repairs & Maintenance,HRAHRM,T & S Heating Ltd,A046054,23/06/2021,1411705,-512.60,Housing repairs
North West Leicestershire District Council,31UH,Housing Repairs,HRA Housing Repairs & Maintenance,HRAHRM,T & S Heating Ltd,A046054,23/06/2021,1411706,4228.81,Housing repairs
North West Leicestershire District Council,31UH,Housing Repairs,HRA Housing Repairs & Maintenance,HRAHRM,T & S Heating Ltd,A046054,23/06/2021,1411707,1537.75,Housing repairs
North West Leicestershire District Council,31UH,Housing Repairs,HRA Housing Repairs & Maintenance,HRAHRM,T & S Heating Ltd,A046054,23/06/2021,1411708,-1409.65,Housing repairs
North West Leicestershire District Council,31UH,Economic Development,Business Focus Group,BFG,Park Farm Estates Ltd,A045236,23/06/2021,1411900,16800.00,Grants
North West Leicestershire District Council,31UH,Economic Development,Business Focus Group,BFG,Slack & Parr Limited,A046924,23/06/2021,1411901,60000.00,Grants
North West Leicestershire District Council,31UH,Economic Development,Business Focus Group,BFG,Trunet (UK) Ltd,A042836,23/06/2021,1411902,31205.00,Grants
North West Leicestershire District Council,31UH,Economic Development,Business Focus Group,BFG,Roberts Tours Limited,A046923,23/06/2021,1411903,60000.00,Grants
North West Leicestershire District Council,31UH,Economic Development,Business Focus Group,BFG,TriMark Europe Limited,A046922,23/06/2021,1411904,57056.00,Grants
North West Leicestershire District Council,31UH,Economic Development,Business Focus Group,BFG,K-Tech Suspension Ltd,A042857,23/06/2021,1411905,18825.00,Grants
North West Leicestershire District Council,31UH,Economic Development,Business Focus Group,BFG,Technical Valve Services Ltd,A046001,23/06/2021,1411906,45000.00,Grants
North West Leicestershire District Council,31UH,Housing Repairs,HRA Housing Repairs & Maintenance,HRAHRM,European Asbestos Services Ltd,A045507,23/06/2021,1411918,33019.66,Contract Payments (Dws) Ext
North West Leicestershire District Council,31UH,Finance,Exchequer Services,EXCH,Comensura Limited,A036958,23/06/2021,1411926,31820.04,Agency Staff
North West Leicestershire District Council,31UH,Finance,Exchequer Services,EXCH,Comensura Limited,A036958,23/06/2021,1411927,26861.03,Agency Staff
North West Leicestershire District Council,31UH,Housing Repairs,HRA Housing Repairs & Maintenance,HRAHRM,Dodd Group (Midlands) Limited,A036692,23/06/2021,1411928,17260.51,Electrical
North West Leicestershire District Council,31UH,Legal & Democratic,Electoral & Land Charges,LDELC,The Association of Electoral Administrators Ltd,A033402,23/06/2021,1411935,2006.40,Election Fees
North West Leicestershire District Council,31UH,Finance,Revenues,REVS,Redacted - Personal Data,A000133,24/06/2021,1411976,500.00,Test and Trace Grants
North West Leicestershire District Council,31UH,Finance,Exchequer Services,EXCH,Digicert,A042250,24/06/2021,1411978,574.10,Software Licences
North West Leicestershire District Council,31UH,Finance,Exchequer Services,EXCH,ESPO,A000958,24/06/2021,1411980,6587.70,Gas
North West Leicestershire District Council,31UH,Housing,HRA Housing Management,HRAHM,Redacted - Personal Data,A000133,24/06/2021,1411981,500.00,Test and Trace Grants
North West Leicestershire District Council,31UH,Finance,Financial Planning,FINPLA,Public Works Loan Board,A001340,24/06/2021,1411982,38062.50,P.W.L.B. Loans
North West Leicestershire District Council,31UH,Finance,Exchequer Services,EXCH,Vodafone Limited,A001861,24/06/2021,1411989,726.06,Mobile Telephones
North West Leicestershire District Council,31UH,Finance,Financial Planning,FINPLA,Sports & Leisure Management Ltd,A045556,24/06/2021,1411990,833333.33,Contract Payments (Other) Ext
North West Leicestershire District Council,31UH,Finance,Financial Planning,FINPLA,Sports & Leisure Management Ltd,A045556,24/06/2021,1411991,329810.35,Contract Payments (Other) Ext
North West Leicestershire District Council,31UH,Finance,Exchequer Services,EXCH,Total Gas & Power,A033385,24/06/2021,1411992,14153.39,Electricity
North West Leicestershire District Council,31UH,Housing,HRA Housing Management,HRAHM,H M C S,A033868,24/06/2021,1411993,325.00,Legal & Professional Services
North West Leicestershire District Council,31UH,Finance,Exchequer Services,EXCH,H M Land Registry,A000713,24/06/2021,1411994,492.00,Land Search Fees
North West Leicestershire District Council,31UH,Corporate Director,Human Resources,HR,Arnold Clark Vehicle Management,A035549,30/06/2021,1411970,4319.54,Items To Be Leased
North West Leicestershire District Council,31UH,Housing,HRA Housing Management,HRAHM,JLA Limited,A043639,30/06/2021,1411971,442.00,Cleaning & Domestic Equipment
North West Leicestershire District Council,31UH,Housing,HRA Housing Management,HRAHM,JLA Limited,A043639,30/06/2021,1411972,302.00,Cleaning & Domestic Equipment
North West Leicestershire District Council,31UH,Housing,HRA Housing Management,HRAHM,JLA Limited,A043639,30/06/2021,1411973,282.00,Cleaning & Domestic Equipment
North West Leicestershire District Council,31UH,Housing,HRA Housing Management,HRAHM,PPG Architectural Coatings Ltd,A000876,30/06/2021,1411974,1031.25,Internal Decorations
North West Leicestershire District Council,31UH,Economic Development,Business Focus Group,BFG,Redacted - Personal Data,A046928,30/06/2021,1412003,990.00,Grants
North West Leicestershire District Council,31UH,Finance,Exchequer Services,EXCH,Click Travel Ltd,A044308,30/06/2021,1412009,3124.93,Travel and Subsistence
North West Leicestershire District Council,31UH,Leisure & Culture,Sport & Physical Activity,SPA,Ibstock Community College,A000804,30/06/2021,1412062,7500.00,Swimming Pool Grant
North West Leicestershire District Council,31UH,Corporate Director,Human Resources,HR,Volkswagen Financial Services,A043221,30/06/2021,1412064,426.14,Items To Be Leased
North West Leicestershire District Council,31UH,Legal & Democratic,Legal Services,LDLS,Freeths LLP,A038047,30/06/2021,1412084,12708.00,External Legal Fees & Advice
North West Leicestershire District Council,31UH,Housing,HRA Housing Management,HRAHM,Community Advice and Law Service,A046930,30/06/2021,1412085,3973.80,Legal & Professional Services
North West Leicestershire District Council,31UH,Finance,Financial Planning,FINPLA,Osgathorpe Parish Council,A001251,30/06/2021,1412090,416.23,Contributions
North West Leicestershire District Council,31UH,Economic Development,Business Focus Group,BFG,Primary PPA Cover,A046932,30/06/2021,1412210,1000.00,Grants
North West Leicestershire District Council,31UH,Legal & Democratic,Legal Services,LDLS,Timothy Leader,A044312,30/06/2021,1412212,500.00,External Legal Fees & Advice
North West Leicestershire District Council,31UH,Finance,Revenues,REVS,Redacted - Personal Data,A000133,30/06/2021,1412222,500.00,Test and Trace Grants
North West Leicestershire District Council,31UH,Finance,Revenues,REVS,Redacted - Personal Data,A000133,30/06/2021,1412223,500.00,Test and Trace Grants
North West Leicestershire District Council,31UH,Finance,Exchequer Services,EXCH,Bigdug Limited,A042250,30/06/2021,1412226,1096.00,Operational Purchases
North West Leicestershire District Council,31UH,Finance,Exchequer Services,EXCH,DVLA Vehicle Tax,A042250,30/06/2021,1412226,747.50,Vehicle Tax Licenses
North West Leicestershire District Council,31UH,Finance,Exchequer Services,EXCH,ASPLI,A042250,30/06/2021,1412226,942.00,Operational Purchases
North West Leicestershire District Council,31UH,Finance,Exchequer Services,EXCH,Tesco,A042250,30/06/2021,1412226,314.25,Food Collections
North West Leicestershire District Council,31UH,Housing Repairs,HRA Housing Repairs & Maintenance,HRAHRM,Timber-Link Fencing Ltd,A033297,02/06/2021,1411175,1900.00,External Contractor Payments
North West Leicestershire District Council,31UH,Housing Repairs,HRA Housing Repairs & Maintenance,HRAHRM,Timber-Link Fencing Ltd,A033297,02/06/2021,1411176,880.00,External Contractor Payments
North West Leicestershire District Council,31UH,Housing Repairs,HRA Housing Repairs & Maintenance,HRAHRM,Timber-Link Fencing Ltd,A033297,02/06/2021,1411177,779.00,External Contractor Payments
North West Leicestershire District Council,31UH,Housing Repairs,HRA Housing Repairs & Maintenance,HRAHRM,Timber-Link Fencing Ltd,A033297,02/06/2021,1411178,1980.00,External Contractor Payments
North West Leicestershire District Council,31UH,Housing Repairs,HRA Housing Repairs & Maintenance,HRAHRM,Timber-Link Fencing Ltd,A033297,02/06/2021,1411179,1532.00,External Contractor Payments
North West Leicestershire District Council,31UH,Housing Repairs,HRA Housing Repairs & Maintenance,HRAHRM,Timber-Link Fencing Ltd,A033297,09/06/2021,1411402,666.00,External Contractor Payments
North West Leicestershire District Council,31UH,Housing Repairs,HRA Housing Repairs & Maintenance,HRAHRM,Timber-Link Fencing Ltd,A033297,09/06/2021,1411403,465.00,External Contractor Payments
North West Leicestershire District Council,31UH,Housing Repairs,HRA Housing Repairs & Maintenance,HRAHRM,Timber-Link Fencing Ltd,A033297,09/06/2021,1411404,810.00,External Contractor Payments
North West Leicestershire District Council,31UH,Housing Repairs,HRA Housing Repairs & Maintenance,HRAHRM,Geze Uk Limited,A023130,16/06/2021,1411483,350.00,Lift maintenance
North West Leicestershire District Council,31UH,Housing Repairs,HRA Housing Repairs & Maintenance,HRAHRM,Laker BMS Ltd,A031787,16/06/2021,1411484,2846.24,Contract Payments (Dws) Ext
North West Leicestershire District Council,31UH,Housing Repairs,HRA Housing Repairs & Maintenance,HRAHRM,Laker BMS Ltd,A031787,16/06/2021,1411485,687.25,Plumbing & Heating
North West Leicestershire District Council,31UH,Housing Repairs,HRA Housing Repairs & Maintenance,HRAHRM,John Merison BMC Ltd,A001092,16/06/2021,1411489,1400.00,General Repairs
North West Leicestershire District Council,31UH,Housing Repairs,HRA Housing Repairs & Maintenance,HRAHRM,Orbis Property Protection Ltd,A028149,16/06/2021,1411492,1486.22,Void Property Clearance Services
North West Leicestershire District Council,31UH,Housing Repairs,HRA Housing Repairs & Maintenance,HRAHRM,John Merison BMC Ltd,A001092,16/06/2021,1411495,495.30,General Repairs
North West Leicestershire District Council,31UH,Housing Repairs,HRA Housing Repairs & Maintenance,HRAHRM,John Merison BMC Ltd,A001092,16/06/2021,1411498,5246.45,General Repairs
North West Leicestershire District Council,31UH,Housing Repairs,HRA Housing Repairs & Maintenance,HRAHRM,Premier Mobility UK Ltd,A045304,16/06/2021,1411499,5129.76,Contract Payments (Dws) Ext
North West Leicestershire District Council,31UH,Housing Repairs,HRA Housing Repairs & Maintenance,HRAHRM,Western Power Distribution,A038499,16/06/2021,1411500,1689.72,Contract Payments (Dws) Ext
North West Leicestershire District Council,31UH,Housing Repairs,HRA Housing Repairs & Maintenance,HRAHRM,Timber-Link Fencing Ltd,A033297,16/06/2021,1411679,1891.00,External Contractor Payments
North West Leicestershire District Council,31UH,Housing Repairs,HRA Housing Repairs & Maintenance,HRAHRM,Timber-Link Fencing Ltd,A033297,16/06/2021,1411680,1135.00,External Contractor Payments
North West Leicestershire District Council,31UH,Housing Repairs,HRA Housing Repairs & Maintenance,HRAHRM,Timber-Link Fencing Ltd,A033297,16/06/2021,1411681,1824.00,External Contractor Payments
North West Leicestershire District Council,31UH,Housing Repairs,HRA Housing Repairs & Maintenance,HRAHRM,Timber-Link Fencing Ltd,A033297,16/06/2021,1411682,2804.00,External Contractor Payments
North West Leicestershire District Council,31UH,Housing Repairs,HRA Housing Repairs & Maintenance,HRAHRM,Emperor Scaffolding Limited,A038405,23/06/2021,1411816,1160.00,Hire Of Operational Equipment
North West Leicestershire District Council,31UH,Housing Repairs,HRA Housing Repairs & Maintenance,HRAHRM,Emperor Scaffolding Limited,A038405,23/06/2021,1411817,1120.00,Hire Of Operational Equipment
North West Leicestershire District Council,31UH,Housing Repairs,HRA Housing Repairs & Maintenance,HRAHRM,Orbis Property Protection Ltd,A028149,23/06/2021,1411821,705.64,Void Property Clearance Services
North West Leicestershire District Council,31UH,Housing Repairs,HRA Housing Repairs & Maintenance,HRAHRM,Orbis Property Protection Ltd,A028149,23/06/2021,1411822,2078.95,Void Property Clearance Services
North West Leicestershire District Council,31UH,Housing Repairs,HRA Housing Repairs & Maintenance,HRAHRM,Emperor Scaffolding Limited,A038405,23/06/2021,1411823,600.00,Hire Of Operational Equipment
North West Leicestershire District Council,31UH,Housing Repairs,HRA Housing Repairs & Maintenance,HRAHRM,Emperor Scaffolding Limited,A038405,23/06/2021,1411825,385.00,Hire Of Operational Equipment
North West Leicestershire District Council,31UH,Housing Repairs,HRA Housing Repairs & Maintenance,HRAHRM,Emperor Scaffolding Limited,A038405,23/06/2021,1411826,300.00,Hire Of Operational Equipment
North West Leicestershire District Council,31UH,Housing Repairs,HRA Housing Repairs & Maintenance,HRAHRM,Emperor Scaffolding Limited,A038405,23/06/2021,1411827,375.00,Hire Of Operational Equipment
North West Leicestershire District Council,31UH,Housing Repairs,HRA Housing Repairs & Maintenance,HRAHRM,Emperor Scaffolding Limited,A038405,23/06/2021,1411830,1720.00,Hire Of Operational Equipment
North West Leicestershire District Council,31UH,Housing Repairs,HRA Housing Repairs & Maintenance,HRAHRM,Emperor Scaffolding Limited,A038405,23/06/2021,1411831,1940.00,Hire Of Operational Equipment
North West Leicestershire District Council,31UH,Housing Repairs,HRA Housing Repairs & Maintenance,HRAHRM,Emperor Scaffolding Limited,A038405,23/06/2021,1411832,1940.00,Hire Of Operational Equipment
North West Leicestershire District Council,31UH,Housing Repairs,HRA Housing Repairs & Maintenance,HRAHRM,Emperor Scaffolding Limited,A038405,23/06/2021,1411833,1940.00,Hire Of Operational Equipment
North West Leicestershire District Council,31UH,Housing Repairs,HRA Housing Repairs & Maintenance,HRAHRM,Emperor Scaffolding Limited,A038405,23/06/2021,1411834,1720.00,Hire Of Operational Equipment
North West Leicestershire District Council,31UH,Housing Repairs,HRA Housing Repairs & Maintenance,HRAHRM,Laker BMS Ltd,A031787,23/06/2021,1411835,8000.00,Contract Payments (Dws) Ext
